fUST/lending_fUST_20260110
["ID","MTS","AMOUNT","RATE_DAILY","PERIOD"]
[401161699,1767999033977,-1493.0,0.0002769,10]
[401161700,1767999033986,-304.3115517,0.00028301,30]
[401161701,1767999033996,-189.4417879,0.00028301,30]
[401161702,1767999034006,-153.0,0.00028301,30]
[401161703,1767999034015,-609.4715265,0.00028301,30]
[401161704,1767999034025,-187.1804224,0.00028301,30]
[401161705,1767999034034,-304.3115517,0.00028301,30]
[401161706,1767999034044,-601.1321314,0.00028301,30]
[401161707,1767999034053,-601.1321314,0.00028301,30]
[401161708,1767999034063,-304.3115517,0.00028301,30]
[401161709,1767999034072,-304.3115517,0.00028301,30]
[401161710,1767999034082,-601.1321314,0.00028301,30]
[401161711,1767999034091,-304.3115517,0.00028301,30]
[401161713,1767999034101,-304.3115517,0.00028301,30]
[401161715,1767999034110,-304.3115517,0.00028301,30]
[401161716,1767999034119,-153.0,0.00028639,30]
[401161717,1767999034128,-382.1395677,0.00028639,30]
[401161718,1767999034138,-153.0,0.00028639,30]
[401161719,1767999034147,-154.3389544,0.00028639,30]
[401161720,1767999034156,-12671.40054682,0.00028776,2]
[401161721,1767999034166,-2546.622611,0.00029,2]
[401161722,1767999034175,-151.0,0.00029,19]
[401161723,1767999034184,-304.3115517,0.00029123,30]
[401161724,1767999034193,-304.3115517,0.00029123,30]
[401161725,1767999034202,-304.3115517,0.00029123,30]
[401161726,1767999034211,-319.1910803,0.00029123,30]
[401161727,1767999034221,-5327.33,0.000298,2]
[401161728,1767999034231,-151.0,0.00029933,4]
[401161729,1767999034241,-1079.7687724,0.0003,30]
[401161730,1767999034251,-4104.05657851,0.00030036,2]
[401161731,1767999034260,-500.0,0.00030136,8]
[401161732,1767999034271,-449.11219516,0.00030136,8]
[401161733,1767999034280,-500.0,0.00030136,60]
[401161734,1767999034289,-440.46983605,0.00030136,2]
[401161735,1767999034303,-1000.0,0.00030136,2]
[401161736,1767999034312,-538.06897343,0.00030136,30]
[401161737,1767999034322,-500.0,0.00030136,21]
[401161738,1767999034331,-500.0,0.00030136,21]
[401161739,1767999034342,-500.0,0.00030136,21]
[401161740,1767999034352,-193.42,0.00030136,21]
[401161741,1767999034361,-500.0,0.00030136,60]
[401161742,1767999034372,-352.89,0.00030137,2]
[401161743,1767999034382,-284.81,0.000302,14]
[401161744,1767999034392,-178.0,0.00030229,2]
[401161745,1767999034402,-417.0,0.00030229,2]
[401161746,1767999034411,-199.0,0.00030958,30]
[401161747,1767999034422,-151.0,0.00031,20]
[401161748,1767999034432,-199.0,0.00031506,31]
[401161749,1767999034442,-151.0,0.00031608,5]
[401161750,1767999034451,-1735.72001394,0.0003168,3]
[401161751,1767999034464,-598.02255838,0.0003168,3]
[401161752,1767999034476,-61329.55485305,0.0003168,3]
[401161753,1767999034486,-283.8,0.00031846,2]
[401161754,1767999034496,-3598.42980373,0.00031893,2]
[401161755,1767999034506,-306.0,0.00031904,30]
[401161756,1767999034515,-1799.7094302,0.0003199,2]
[401161760,1767999038233,-2367.27954242,0.0003199,2]
[401161761,1767999038300,-6814.651651,0.0003199,2]
[401162230,1767999046162,-263.62640284,0.00024899,2]
[401162232,1767999046172,-500.0,0.00024899,2]
[401162234,1767999046182,-500.0,0.00024899,2]
[401162236,1767999046192,-500.0,0.00024899,2]
[401162238,1767999046201,-500.0,0.00024899,2]
[401162240,1767999046211,-500.0,0.00024899,2]
[401162242,1767999046220,-500.0,0.00024899,2]
[401162244,1767999046229,-500.0,0.00024899,2]
[401162246,1767999046239,-500.0,0.00024899,2]
[401162247,1767999046249,-500.0,0.00024899,2]
[401162249,1767999046258,-500.0,0.00024899,2]
[401162251,1767999046267,-246.2954123,0.00024899,2]
[401162253,1767999046279,-58.20427307,0.00024899,2]
[401162254,1767999046289,-720.57485849,0.0003199,2]
[401162255,1767999046303,-907.21964252,0.0003199,2]
[401162256,1767999046906,-1117.26879151,0.0003,30]
[401162303,1767999068433,161.72349687,0.00022773,120]
[401162304,1767999070026,44.06885129,0.00023456,110]
[401162305,1767999070058,171.77902276,0.00023456,110]
[401162306,1767999514572,155.0,8.246e-05,2]
[401162307,1767999820720,500.0,0.00030136,120]
[401162308,1767999820948,500.0,0.00030136,120]
[401162309,1767999821172,500.0,0.00030136,120]
[401162310,1767999821403,500.0,0.00030136,120]
[401162311,1767999821684,500.0,0.00030136,120]
[401162312,1767999821856,500.0,0.00030136,120]
[401162313,1767999822092,500.0,0.00030136,120]
[401162314,1767999822344,289.19299543,0.00030136,120]
[401162324,1768000232511,-243.639,0.00017642,2]
[401162325,1768000232523,-58317.59692449,0.0001799,2]
[401162326,1768000232534,-352.60800796,0.00018001,2]
[401162327,1768000232544,-500.0,0.00018001,2]
[401162328,1768000232554,-500.0,0.00018001,2]
[401162329,1768000232564,-500.0,0.00018001,2]
[401162330,1768000232574,-500.0,0.00018001,2]
[401162331,1768000232584,-500.0,0.00018001,2]
[401162332,1768000232593,-500.0,0.00018001,2]
[401162333,1768000232603,-500.0,0.00018001,2]
[401162335,1768000232614,-388.7322104,0.00018001,2]
[401162336,1768000232624,-500.0,0.00018001,2]
[401162337,1768000232634,-550.0,0.00018001,2]
[401162338,1768000232644,-33076.21865565,0.00018002,2]
[401162339,1768000232656,-2898.06756959,0.00018002,2]
[401162356,1768000238544,-446.94503474,0.00018002,2]
[401162359,1768000238558,-1586.21195227,0.00018002,2]
[401162361,1768000238571,-2352.00076887,0.00018002,2]
[401162363,1768000238583,-37423.63876,0.00018002,2]
[401162365,1768000238595,-3006.72,0.00018002,2]
[401162367,1768000238607,-2739.5793,0.00018002,2]
[401162368,1768000238619,-920.0098551,0.00018002,2]
[401162369,1768000238631,-62881.29975183,0.00018002,2]
[401162408,1768000240688,-927.17786563,0.00018002,2]
[401162409,1768000240700,-22076.46683927,0.00018002,2]
[401162679,1768000246328,-2033.13085028,0.00018002,2]
[401162680,1768000246389,-1422.31461751,0.00018002,2]
[401162708,1768001431553,-680.0,0.00017642,2]
[401162709,1768001431563,-2532.09497955,0.00017689,2]
[401162710,1768001431575,-637.20732441,0.00017689,2]
[401162711,1768001431587,-2831.73399162,0.00017689,2]
[401162713,1768001431596,-300.0,0.00017789,2]
[401162716,1768001431608,-188.0,0.00017789,2]
[401162717,1768001431619,-1200.0,0.00017789,2]
[401162719,1768001431628,-19419.63313089,0.0001779,2]
[401162722,1768001431641,-1113.68375377,0.0001779,2]
[401162723,1768001431652,-1228.67557463,0.0001779,2]
[401162754,1768001437643,-303.14304829,0.00017789,2]
[401162755,1768001437653,-500.0,0.00017789,2]
[401162756,1768001437663,-500.0,0.00017789,2]
[401162757,1768001437673,-280.64708888,0.00017789,2]
[401162758,1768001437685,-219.35291112,0.00017789,2]
[401162759,1768001437695,-500.0,0.00017789,2]
[401162760,1768001437704,-500.0,0.00017789,2]
[401162761,1768001437714,-500.0,0.00017789,2]
[401162762,1768001437723,-436.68143517,0.00017789,2]
[401162763,1768001437733,-500.0,0.00017789,2]
[401162764,1768001437743,-24933.48506123,0.0001779,2]
[401162765,1768001437754,-438.41934811,0.0001779,2]
[401162766,1768001437766,-1683.85927211,0.0001779,2]
[401162767,1768001437778,-2246.8077548,0.0001779,2]
[401162769,1768001439848,-5221.32445422,0.0001779,2]
[401162770,1768001439860,-30535.33602852,0.0001779,2]
[401162987,1768001444493,-4286.8484118,0.0001779,2]
[401162993,1768001445634,-2814.77973687,0.0001779,2]
[401162994,1768001445646,-12891.06604423,0.0001779,2]
[401162995,1768001545320,165.304,0.0003,120]
[401163023,1768002631771,-189.97563107,0.00015117,2]
[401163024,1768002631782,-525.0,0.00017,2]
[401163025,1768002631792,-500.0,0.0001719,2]
[401163026,1768002631801,-194.911,0.00017434,2]
[401163027,1768002631811,-186.98897255,0.00017687,2]
[401163028,1768002631821,-300.0,0.00017689,2]
[401163029,1768002631830,-300.0,0.00017689,2]
[401163030,1768002631840,-278.0,0.00017689,2]
[401163031,1768002631849,-300.0,0.00017689,2]
[401163032,1768002631859,-1200.0,0.00017689,2]
[401163033,1768002631868,-9925.12439638,0.0001769,2]
[401163034,1768002631883,-1000.0,0.0001769,2]
[401163443,1768002645850,-6944.71944966,0.0001769,2]
[401163459,1768002729506,369146.4162921,0.00030136,120]
[401163461,1768002840540,500.0,0.00030136,120]
[401163462,1768002840778,500.0,0.00030136,120]
[401163463,1768002841191,500.0,0.00030136,120]
[401163464,1768002841269,506.59663788,0.00030136,120]
[401163502,1768003832071,-300.0,0.00017588,2]
[401163504,1768003832082,-300.0,0.00017588,2]
[401163506,1768003832092,-679.0,0.00017588,2]
[401163508,1768003832102,-585.47636112,0.00017588,2]
[401163511,1768003832116,-614.52363888,0.00017588,2]
[401163513,1768003832126,-261.37540698,0.00017589,2]
[401163686,1768003838118,-238.62459302,0.00017589,2]
[401163687,1768003838129,-62.47233744,0.00017589,2]
[401163688,1768003838169,-193.20466718,0.00017589,2]
[401163689,1768003838180,-500.0,0.00017589,2]
[401163690,1768003838191,-500.0,0.00017589,2]
[401163691,1768003838201,-303.72443007,0.00017589,2]
[401163692,1768003838213,-196.27556993,0.00017589,2]
[401163693,1768003838223,-500.0,0.00017589,2]
[401163694,1768003838232,-500.0,0.00017589,2]
[401163695,1768003838243,-212.2001338,0.00017589,2]
[401163696,1768003838253,-435.19129885,0.0001759,2]
[401163697,1768003838265,-2042.30123299,0.0001759,2]
[401163724,1768003840469,-520.77936835,0.0001759,2]
[401163727,1768003840480,-9029.97905336,0.0001759,2]
[401163729,1768003840493,-30634.86139942,0.0001759,2]
[401164006,1768003846194,-10372.29228187,0.0001759,2]
[401164007,1768003846246,-48153.70698967,0.0001759,2]
[401164010,1768004344860,155.0,8.246e-05,2]
[401164017,1768005032359,-158.91,0.0001108,2]
[401164018,1768005032370,-158.91,0.00011122,2]
[401164019,1768005032380,-178.78,0.00011695,2]
[401164020,1768005032390,-153.42727789,0.0001174,2]
[401164021,1768005032462,-25.35272211,0.0001174,2]
[401164023,1768005032472,-173.07965737,0.00012311,2]
[401164025,1768005032482,-173.07965737,0.00012358,2]
[401164027,1768005032491,-183.87,0.0001748,2]
[401164028,1768005032500,-183.87,0.0001748,2]
[401164029,1768005032509,-2213.39770579,0.0001749,2]
[401164030,1768005032521,-31075.09835662,0.0001749,2]
[401164068,1768005038304,-18549.97262853,0.0001749,2]
[401164069,1768005038328,-7049.96099586,0.0001749,2]
[401164070,1768005038351,-1577.33909433,0.0001749,2]
[401164071,1768005038364,-1040.1369001,0.0001749,2]
[401164072,1768005038376,-1619.38572393,0.0001749,2]
[401164073,1768005038387,-2905.13,0.0001749,2]
[401164108,1768005040635,-339.07356829,0.0001749,2]
[401164110,1768005040647,-1795.85138465,0.0001749,2]
[401164112,1768005040659,-19231.90810616,0.0001749,2]
[401164117,1768005040690,-36535.10491839,0.0001749,2]
[401164119,1768005040701,-500.0,0.00018,2]
[401164121,1768005040711,-600.0,0.00018043,2]
[401164123,1768005040721,-1041.66666667,0.00018107,2]
[401164125,1768005040731,-785.27,0.000182,2]
[401164128,1768005040742,-1052.91552824,0.000189,2]
[401164130,1768005040751,-500.0,0.00019,2]
[401164132,1768005040761,-208.0,0.00019726,2]
[401164134,1768005040772,-1000.0,0.00019739,2]
[401164136,1768005040782,-720.0,0.00019847,2]
[401164138,1768005040792,-329.06019832,0.0002,14]
[401164140,1768005040802,-3000.0,0.00021,2]
[401164142,1768005040812,-3000.0,0.0002101,2]
[401164144,1768005040822,-3000.0,0.0002102,2]
[401164146,1768005040832,-3000.0,0.0002103,2]
[401164148,1768005040842,-151.0,0.0002103,2]
[401164150,1768005040853,-3000.0,0.0002104,2]
[401164152,1768005040863,-3000.0,0.0002105,2]
[401164154,1768005040873,-3000.0,0.0002106,2]
[401164156,1768005040883,-5407.830119,0.0002107,2]
[401164158,1768005040894,-266.863586,0.0002107,2]
[401164160,1768005040904,-864.0,0.00021832,10]
[401164163,1768005040916,-1398.03193882,0.00023223,2]
[401164165,1768005040926,-417.0,0.00023535,2]
[401164167,1768005040936,-178.0,0.00023535,2]
[401164169,1768005040947,-1000.0,0.00024015,10]
[401164171,1768005040957,-6746.84543838,0.000249,2]
[401164173,1768005040968,-1000.0,0.00026417,30]
[401164175,1768005040978,-244.0,0.00026417,30]
[401164177,1768005040988,-417.0,0.00026535,2]
[401164179,1768005040999,-178.0,0.00026535,2]
[401164182,1768005041009,-155.929,0.00027071,15]
[401164184,1768005041019,-6660.0,0.00028748,10]
[401164186,1768005041029,-1384.0,0.00028748,10]
[401164188,1768005041040,-1000.0,0.00029058,30]
[401164190,1768005041050,-492.0,0.00029058,30]
[401164192,1768005041065,-391.654,0.00029535,2]
[401164194,1768005041076,-178.0,0.00029535,2]
[401164196,1768005041086,-180.02171164,0.00030136,2]
[401164199,1768005041098,-500.0,0.00030346,14]
[401164201,1768005041108,-1198.90347994,0.0003039,2]
[401164203,1768005041118,-250.0,0.000309,10]
[401164205,1768005041131,-199.0,0.00030958,30]
[401164207,1768005041142,-250.0,0.00031,10]
[401164209,1768005041152,-1199.47660124,0.0003103,2]
[401164211,1768005041162,-250.0,0.000311,10]
[401164214,1768005041177,-272.501494,0.000312,10]
[401164216,1768005041187,-500.0,0.00031405,3]
[401164218,1768005041198,-199.0,0.00031506,31]
[401164220,1768005041209,-600.0,0.00031542,3]
[401164222,1768005041219,-1041.66666667,0.00031679,3]
[401164225,1768005041230,-151.0,0.000318,11]
[401164227,1768005041240,-170.89,0.000318,14]
[401164229,1768005041251,-1041.66666667,0.00031903,30]
[401164231,1768005041260,-1000.0,0.00031964,30]
[401164233,1768005041271,-791.0,0.00031964,30]
[401164235,1768005041280,-183.87,0.0003198,2]
[401164237,1768005041290,-500.0,0.0003199,14]
[401164239,1768005041299,-199.0,0.00032054,32]
[401164241,1768005041309,-178.0,0.00032535,2]
[401164243,1768005041319,-1451.8281,0.000326,10]
[401164245,1768005041329,-199.0,0.00032602,33]
[401164247,1768005041339,-3373.42271919,0.00032867,2]
[401164249,1768005041349,-1274.87,0.00032876,120]
[401164251,1768005041359,-500.0,0.00032877,8]
[401164253,1768005041368,-500.0,0.00032877,8]
[401164255,1768005041380,-707.28,0.00032877,10]
[401164257,1768005041390,-1348.73,0.00032877,10]
[401164259,1768005041400,-1973.0,0.00033,2]
[401164261,1768005041411,-199.0,0.0003315,34]
[401164263,1768005041421,-151.0,0.00033376,6]
[401164265,1768005041432,-3373.42271919,0.00033501,2]
[401164268,1768005041442,-4736.82165609,0.00033511,3]
[401164270,1768005041451,-500.0,0.00033634,14]
[401164272,1768005041461,-199.0,0.00033698,35]
[401164274,1768005041471,-210.0,0.00033699,5]
[401164276,1768005041481,-151.0,0.000338,17]
[401164278,1768005041491,-1274.87,0.00033972,120]
[401164299,1768005041671,-176.87,0.00034,2]
[401164302,1768005041703,-199.0,0.00034246,36]
[401164304,1768005041713,-151.0,0.000344,13]
[401164306,1768005041723,-270.0,0.00034521,5]
[401164308,1768005041733,-200.0,0.00034783,120]
[401164310,1768005041743,-199.0,0.00034794,37]
[401164312,1768005041753,-170.89,0.000348,30]
[401164314,1768005041763,-200.0,0.0003486,120]
[401164316,1768005041773,-200.0,0.00034953,120]
[401164318,1768005041783,-200.0,0.00034956,120]
[401164320,1768005041793,-835.69025234,0.00035,120]
[401164322,1768005041802,-200.0,0.00035003,120]
[401164324,1768005041813,-151.0,0.00035005,30]
[401164326,1768005041823,-1274.87,0.00035068,120]
[401164328,1768005041832,-1000.0,0.00035161,30]
[401164330,1768005041842,-1000.0,0.00035161,30]
[401164332,1768005041852,-200.0,0.00035214,120]
[401164334,1768005041862,-500.0,0.00035278,14]
[401164336,1768005041871,-199.0,0.00035342,38]
[401164338,1768005041881,-330.0,0.00035342,5]
[401164340,1768005041891,-200.0,0.00035355,120]
[401164342,1768005041900,-151.0,0.000354,16]
[401164344,1768005041910,-178.0,0.00035535,2]
[401164346,1768005041921,-151.0,0.00035616,31]
[401164347,1768005041931,-151.0,0.00035616,31]
[401164348,1768005041941,-151.0,0.00035616,31]
[401164349,1768005041951,-283.418507,0.00035616,31]
[401164350,1768005041964,-151.0,0.00035616,31]
[401164351,1768005041973,-151.0,0.00035616,31]
[401164352,1768005041983,-151.0,0.00035616,31]
[401164353,1768005041993,-151.0,0.00035616,31]
[401164354,1768005042003,-151.0,0.00035616,31]
[401164355,1768005042014,-151.0,0.00035616,31]
[401164356,1768005042024,-151.0,0.00035616,31]
[401164357,1768005042035,-151.0,0.00035616,31]
[401164358,1768005042045,-151.0,0.00035616,31]
[401164359,1768005042056,-151.0,0.00035616,31]
[401164360,1768005042066,-151.0,0.00035616,31]
[401164361,1768005042076,-151.0,0.00035616,31]
[401164362,1768005042086,-274.77141,0.00035616,31]
[401164363,1768005042097,-200.0,0.00035854,120]
[401164364,1768005042107,-151.0,0.00035889,39]
[401164365,1768005042117,-199.0,0.0003589,39]
[401164366,1768005042128,-183.87,0.00035927,2]
[401164367,1768005042137,-53187.70791978,0.00035937,4]
[401164369,1768005042209,-1119.50542007,0.00035937,4]
[401164439,1768005045358,-1269.0,0.00030346,30]
[401164441,1768005045369,-1123.94,0.00035927,10]
[401164443,1768005045379,-6654.11196821,0.00035937,4]
[401164457,1768005046303,-9392.7,0.00035937,4]
[401164458,1768005046317,-1998.0421011,0.00035937,4]
[401164461,1768005046520,-5053.05608969,0.00035937,4]
[401164462,1768005046532,-382.17759527,0.00035937,4]
[401164463,1768005046544,-1318.70184405,0.00035937,4]
[401164464,1768005046556,-31078.60186744,0.00035937,4]
[401164466,1768005320933,500.0,0.00030136,120]
[401164467,1768005321178,500.0,0.00030136,120]
[401164468,1768005321454,500.0,0.00030136,120]
[401164469,1768005321688,505.47142774,0.00030136,120]
[401164470,1768005374391,178.0,0.00023922,2]
[401164479,1768006232381,-178.0,0.00023922,2]
[401164480,1768006232392,-1041.66666667,0.00025899,2]
[401164481,1768006232403,-178.0,0.00026922,2]
[401164482,1768006232413,-178.0,0.00029922,2]
[401164483,1768006232423,-1000.0,0.00029956,30]
[401164484,1768006232436,-6383.0,0.00030644,30]
[401164485,1768006232451,-1273.0,0.00030644,30]
[401164486,1768006232463,-500.0,0.00032,7]
[401164487,1768006232473,-197.4564813,0.00032,120]
[401164488,1768006232483,-500.0,0.00032877,8]
[401164489,1768006232493,-500.0,0.00032877,8]
[401164490,1768006232503,-178.0,0.00032922,2]
[401164492,1768006232513,-500.0,0.00033,7]
[401164494,1768006232523,-300.0,0.00033198,3]
[401164496,1768006232532,-199.0,0.00033199,30]
[401164498,1768006232542,-259.73488698,0.00033699,5]
[401164500,1768006232551,-177.30795318,0.00033747,31]
[401164502,1768006232561,-500.0,0.00034,7]
[401164506,1768006232585,-500.0,0.00034293,14]
[401164508,1768006232595,-3798.88018511,0.00034417,2]
[401164510,1768006232606,-799.6510675,0.00034849,2]
[401164512,1768006232616,-500.0,0.00035,7]
[401164514,1768006232626,-1041.66666667,0.0003506,120]
[401164516,1768006232636,-500.0,0.00035137,120]
[401164518,1768006232646,-3798.88018511,0.00035234,2]
[401164520,1768006232656,-250.0,0.00035615,31]
[401164522,1768006232666,-250.0,0.00035615,31]
[401164523,1768006232676,-151.0,0.00035615,31]
[401164525,1768006232686,-461.67526834,0.00035615,31]
[401164527,1768006232696,-1500.0,0.00035615,31]
[401164529,1768006232706,-151.0,0.00035615,31]
[401164530,1768006232715,-262.03505778,0.00035615,31]
[401164531,1768006232725,-250.0,0.00035615,31]
[401164532,1768006232735,-250.0,0.00035615,31]
[401164533,1768006232744,-500.0,0.00035615,31]
[401164534,1768006232755,-2230.315306,0.00035615,31]
[401164535,1768006232764,-168.3888056,0.00035615,31]
[401164536,1768006232774,-1957.85600001,0.00035615,31]
[401164538,1768006232784,-250.0,0.00035615,31]
[401164539,1768006232793,-1115.51,0.00035826,120]
[401164540,1768006232803,-1041.66666667,0.00035827,3]
[401164541,1768006232813,-500.0,0.00035836,15]
[401164542,1768006232823,-270.36053809,0.00035836,15]
[401164544,1768006232834,-500.0,0.00035836,15]
[401164545,1768006232857,-500.0,0.00035836,15]
[401164547,1768006232870,-500.0,0.00035836,15]
[401164549,1768006232880,-500.0,0.00035836,15]
[401164550,1768006232891,-500.0,0.00035836,15]
[401164551,1768006232901,-512.6167836,0.00035836,15]
[401164552,1768006232911,-500.0,0.00035836,15]
[401164553,1768006232921,-155.929,0.00035836,43]
[401164554,1768006232931,-250.0,0.00035889,39]
[401164555,1768006232940,-250.0,0.00035889,39]
[401164556,1768006232951,-151.0,0.00035889,39]
[401164557,1768006232961,-445.202766,0.00035889,39]
[401164558,1768006232970,-1500.0,0.00035889,39]
[401164559,1768006232980,-151.0,0.00035889,39]
[401164560,1768006232989,-151.0,0.00035889,39]
[401164561,1768006232999,-250.0,0.00035889,39]
[401164562,1768006233009,-250.0,0.00035889,39]
[401164563,1768006233019,-500.0,0.00035889,39]
[401164564,1768006233029,-2150.738,0.00035889,39]
[401164565,1768006233039,-162.380719,0.00035889,39]
[401164566,1768006233049,-250.0,0.00035889,39]
[401164567,1768006233059,-500.0,0.000359,120]
[401164568,1768006233068,-178.0,0.00035922,2]
[401164569,1768006233083,-10000.0,0.00035926,2]
[401164570,1768006233093,-10000.0,0.00035926,10]
[401164571,1768006233103,-10000.0,0.00035936,4]
[401164572,1768006233113,-545.74390165,0.00035937,14]
[401164573,1768006233123,-3793.95631397,0.00036,120]
[401164574,1768006233132,-160.0,0.00036,120]
[401164575,1768006233142,-1000.0,0.00036,120]
[401164576,1768006233152,-151.9,0.00036,30]
[401164577,1768006233162,-176.88,0.00036,2]
[401164578,1768006233171,-500.0,0.00036,7]
[401164579,1768006233182,-1019.0,0.00036,7]
[401164580,1768006233191,-200.0,0.00036012,120]
[401164581,1768006233202,-936.62,0.0003619,10]
[401164582,1768006233211,-780.51,0.0003619,10]
[401164583,1768006233221,-162640.21341205,0.000362,4]
[401164584,1768006233236,-1331.21619743,0.000362,4]
[401164585,1768006233248,-385.80856207,0.000362,4]
[401164590,1768006238523,-605.32736824,0.00032,30]
[401164591,1768006238536,-5245.67263176,0.00032,30]
[401164592,1768006238545,-167.26832356,0.00032877,30]
[401165620,1768007431721,-241.0,0.00025,2]
[401165622,1768007431732,-1041.66666667,0.00027838,2]
[401165624,1768007431742,-500.0,0.00032877,8]
[401165626,1768007431751,-616.0764863,0.00032877,30]
[401165627,1768007431763,-383.65519014,0.00032877,30]
[401165628,1768007431772,-5873.0,0.00032877,30]
[401165629,1768007431781,-313.67,0.0003298,10]
[401165631,1768007431791,-598.15,0.0003298,10]
[401165633,1768007431800,-498.46,0.0003298,10]
[401165635,1768007431810,-31596.13293129,0.0003299,2]
[401165640,1768007437799,-4589.04,0.0003299,30]
[401165641,1768007437810,-793.96,0.0003299,30]
[401165642,1768007437819,-1130.0,0.0003299,30]
[401165643,1768007437829,-7097.48841292,0.0003299,2]
[401165644,1768007437840,-61451.47078858,0.0003299,2]
[401165645,1768007437850,-2849.16013885,0.00032999,2]
[401165646,1768007437859,-155.929,0.0003309,34]
[401165647,1768007437868,-53974.763507,0.0003309,2]
[401165648,1768007437878,-1069.03,0.00033099,120]
[401165649,1768007437887,-500.0,0.00033199,120]
[401165650,1768007437897,-10175.96060326,0.000332,117]
[401165651,1768007437906,-10175.96060325,0.000332,117]
[401165652,1768007437915,-10175.96060325,0.000332,117]
[401165653,1768007437925,-2849.16013883,0.00033495,2]
[401165654,1768007437934,-500.0,0.00033698,120]
[401165655,1768007437943,-2849.16013883,0.00033991,2]
[401165656,1768007437952,-1069.03,0.00034195,120]
[401165657,1768007437961,-2849.16013883,0.00034487,2]
[401165658,1768007437970,-10175.96060325,0.00034811,120]
[401165659,1768007437979,-533.10071166,0.0003492,2]
[401165660,1768007437988,-2849.16013883,0.00034984,2]
[401165661,1768007437998,-500.0,0.0003506,120]
[401165662,1768007438007,-1069.03,0.00035291,120]
[401165663,1768007438016,-2849.16013883,0.0003548,2]
[401165664,1768007438026,-509.25272564,0.00035643,120]
[401165665,1768007438040,-500.0,0.00035936,15]
[401165666,1768007438049,-189.25237666,0.00035936,15]
[401165667,1768007438059,-500.0,0.00035936,15]
[401165668,1768007438068,-500.0,0.00035936,15]
[401165669,1768007438079,-500.0,0.00035936,15]
[401165670,1768007438088,-458.83174852,0.00035936,15]
[401165671,1768007438097,-25252.70116252,0.00035937,4]
[401165707,1768007439981,-1106.58131434,0.00035937,4]
[401166227,1768007445627,-773.90443111,0.00035937,4]
[401166870,1768008631912,-158.0,0.00015,2]
[401166872,1768008631923,-178.0,0.00024387,2]
[401166874,1768008631933,-178.0,0.00027387,2]
[401166876,1768008631942,-1041.66666667,0.00028718,2]
[401166878,1768008631952,-170.13665283,0.00028921,2]
[401166880,1768008631962,-178.0,0.00030387,2]
[401166882,1768008631971,-170.13665282,0.00030443,120]
[401166883,1768008631981,-528.11002768,0.0003279,2]
[401166884,1768008631993,-705.59572831,0.0003279,2]
[401167328,1768008644543,-0.58177305,0.0003279,30]
[401167956,1768008709700,9381.4,0.0003013,120]
[401167971,1768009148319,10000.0,0.00030137,120]
[401167972,1768009172637,6238.67,0.00030137,120]
[401167973,1768009176165,155.0,8.246e-05,2]
[401167977,1768009742424,238.85340001,0.00030136,120]
[401167978,1768009747450,500.0,0.00030136,120]
[401167980,1768009765232,260.96034107,0.00030136,120]
[401167982,1768009772275,362.93030424,0.00030136,120]
[401167983,1768009783037,194.07996615,0.00030136,120]
[401167992,1768009831977,-490.0,0.00013697,2]
[401167993,1768009831987,-23475.95621255,0.00013698,2]
[401167995,1768009831997,-150.16755282,0.00013699,2]
[401167998,1768009832010,-170.66069203,0.00013699,2]
[401168000,1768009832021,-150.05602107,0.00013973,2]
[401168001,1768009832031,-150.79604043,0.00021918,2]
[401168004,1768009832041,-151.14609565,0.00024658,2]
[401168006,1768009832051,-178.704,0.00024788,2]